fUSD/lending_fUSD_20260516
["ID","MTS","AMOUNT","RATE_DAILY","PERIOD"]
[422405555,1778935921000,-500.0,0.00040518,120]
[422405554,1778935921000,-287.25394693,0.00040518,120]
[422405558,1778935921000,-433.34484844,0.00040518,120]
[422405559,1778935921000,-500.0,0.00040518,120]
[422405557,1778935921000,-500.0,0.00040518,120]
[422405552,1778935921000,-500.0,0.00040518,120]
[422405551,1778935921000,-500.0,0.00040518,120]
[422405550,1778935921000,-500.0,0.00040518,120]
[422405548,1778935921000,-500.0,0.00040518,120]
[422405561,1778935921000,-500.0,0.00040518,120]
[422405572,1778935921000,-500.0,0.00040518,120]
[422405564,1778935921000,-500.0,0.00040518,120]
[422405562,1778935921000,-171.42415759,0.00040518,120]
[422405563,1778935921000,-500.0,0.00040518,120]
[422405560,1778935921000,-500.0,0.00040518,120]
[422405565,1778935921000,-500.0,0.00040518,120]
[422405568,1778935921000,-500.0,0.00040518,120]
[422405566,1778935921000,-168.58725539,0.00040518,120]
[422405570,1778935921000,-500.0,0.00040518,120]
[422405569,1778935921000,-500.0,0.00040518,120]
[422405567,1778935921000,-500.0,0.00040518,120]
[422405573,1778935921000,-452.39384,0.00040518,120]
[422405549,1778935921000,-245.63161921,0.00040518,120]
[422405571,1778935921000,-500.0,0.00040518,120]
[422405543,1778935921000,-500.0,0.00040518,120]
[422405529,1778935921000,-500.0,0.00040518,120]
[422405542,1778935921000,-500.0,0.00040518,120]
[422405522,1778935921000,-500.0,0.00040518,120]
[422405520,1778935921000,-500.0,0.00040518,120]
[422405519,1778935921000,-349.61976825,0.00040518,120]
[422405521,1778935921000,-500.0,0.00040518,120]
[422405575,1778935921000,-518.61815206,0.00040518,120]
[422405531,1778935921000,-443.87601863,0.00040518,120]
[422405532,1778935921000,-520.7229513,0.00040518,120]
[422405534,1778935921000,-439.57527297,0.00040518,120]
[422405523,1778935921000,-275.91264944,0.00040518,120]
[422405533,1778935921000,-500.0,0.00040518,120]
[422405525,1778935921000,-500.0,0.00040518,120]
[422405528,1778935921000,-500.0,0.00040518,120]
[422405527,1778935921000,-221.92535571,0.00040518,120]
[422405530,1778935921000,-500.0,0.00040518,120]
[422405526,1778935921000,-539.63971041,0.00040518,120]
[422405535,1778935921000,-439.94026112,0.00040518,120]
[422405537,1778935921000,-250.83737793,0.00040518,120]
[422405536,1778935921000,-500.0,0.00040518,120]
[422405538,1778935921000,-500.0,0.00040518,120]
[422405541,1778935921000,-244.18667961,0.00040518,120]
[422405539,1778935921000,-500.0,0.00040518,120]
[422405540,1778935921000,-194.22313094,0.00040518,120]
[422405547,1778935921000,-500.0,0.00040518,120]
[422405544,1778935921000,-500.0,0.00040518,120]
[422405545,1778935921000,-500.0,0.00040518,120]
[422405546,1778935921000,-518.69429215,0.00040518,120]
[422405579,1778935921000,-500.0,0.00040518,120]
[422405524,1778935921000,-500.0,0.00040518,120]
[422405577,1778935921000,-203.71119441,0.00040518,120]
[422405607,1778935921000,-522.8,0.00040518,120]
[422405612,1778935921000,-468.4159681,0.00040518,120]
[422405610,1778935921000,-254.25218948,0.00040518,120]
[422405611,1778935921000,-522.8,0.00040518,120]
[422405613,1778935921000,-522.8,0.00040518,120]
[422405617,1778935921000,-522.8,0.00040518,120]
[422405618,1778935921000,-522.8,0.00040518,120]
[422405608,1778935921000,-500.0,0.00040518,120]
[422405614,1778935921000,-522.8,0.00040518,120]
[422405616,1778935921000,-522.8,0.00040518,120]
[422405615,1778935921000,-522.8,0.00040518,120]
[422405630,1778935921000,-512.04086639,0.00040518,120]
[422405609,1778935921000,-522.8,0.00040518,120]
[422405619,1778935921000,-522.8,0.00040518,120]
[422405628,1778935921000,-517.3703988,0.00040518,120]
[422405622,1778935921000,-332.70657416,0.00040518,120]
[422405623,1778935921000,-522.8,0.00040518,120]
[422405625,1778935921000,-522.99675037,0.00040518,120]
[422405624,1778935921000,-522.8,0.00040518,120]
[422405629,1778935921000,-500.0,0.00040518,120]
[422405626,1778935921000,-500.0,0.00040518,120]
[422405627,1778935921000,-500.0,0.00040518,120]
[422405632,1778935921000,-500.0,0.00040518,120]
[422405631,1778935921000,-500.0,0.00040518,120]
[422405633,1778935921000,-500.0,0.00040518,120]
[422405578,1778935921000,-500.0,0.00040518,120]
[422405621,1778935921000,-522.8,0.00040518,120]
[422405602,1778935921000,-500.0,0.00040518,120]
[422405620,1778935921000,-522.8,0.00040518,120]
[422405598,1778935921000,-522.8,0.00040518,120]
[422405582,1778935921000,-213.63662477,0.00040518,120]
[422405599,1778935921000,-166.0649015,0.00040518,120]
[422405580,1778935921000,-520.6681634,0.00040518,120]
[422405574,1778935921000,-500.0,0.00040518,120]
[422405576,1778935921000,-215.6629222,0.00040518,120]
[422405581,1778935921000,-155.7709178,0.00040518,120]
[422405594,1778935921000,-522.8,0.00040518,120]
[422405593,1778935921000,-500.0,0.00040518,120]
[422405584,1778935921000,-500.0,0.00040518,120]
[422405586,1778935921000,-272.29506548,0.00040518,120]
[422405583,1778935921000,-500.0,0.00040518,120]
[422405589,1778935921000,-281.51445912,0.00040518,120]
[422405585,1778935921000,-500.0,0.00040518,120]
[422405590,1778935921000,-500.0,0.00040518,120]
[422405592,1778935921000,-500.0,0.00040518,120]
[422405600,1778935921000,-522.8,0.00040518,120]
[422405587,1778935921000,-268.89424317,0.00040518,120]
[422405601,1778935921000,-522.8,0.00040518,120]
[422405597,1778935921000,-182.77243423,0.00040518,120]
[422405605,1778935921000,-522.8,0.00040518,120]
[422405595,1778935921000,-522.8,0.00040518,120]
[422405603,1778935921000,-500.0,0.00040518,120]
[422405604,1778935921000,-522.8,0.00040518,120]
[422405596,1778935921000,-522.8,0.00040518,120]
[422405591,1778935921000,-408.05670276,0.00040518,120]
[422405588,1778935921000,-491.44981015,0.00040518,120]
[422405606,1778935921000,-522.8,0.00040518,120]
[422405676,1778935922000,-500.0,0.00040518,120]
[422405674,1778935922000,-500.0,0.00040518,120]
[422405670,1778935922000,-500.0,0.00040518,120]
[422405672,1778935922000,-500.0,0.00040518,120]
[422405671,1778935922000,-521.1059809,0.00040518,120]
[422405669,1778935922000,-500.0,0.00040518,120]
[422405666,1778935922000,-500.0,0.00040518,120]
[422405668,1778935922000,-500.0,0.00040518,120]
[422405667,1778935922000,-256.03706294,0.00040518,120]
[422405684,1778935922000,-529.3843643,0.00040518,120]
[422405662,1778935922000,-513.4608791,0.00040518,120]
[422405675,1778935922000,-500.0,0.00040518,120]
[422405689,1778935922000,-500.0,0.00040518,120]
[422405685,1778935922000,-232.42332946,0.00040518,120]
[422405677,1778935922000,-500.0,0.00040518,120]
[422405678,1778935922000,-500.0,0.00040518,120]
[422405683,1778935922000,-500.0,0.00040518,120]
[422405681,1778935922000,-500.00000016,0.00040518,120]
[422405679,1778935922000,-500.0,0.00040518,120]
[422405682,1778935922000,-241.73791282,0.00040518,120]
[422405680,1778935922000,-511.97734509,0.00040518,120]
[422405686,1778935922000,-500.0,0.00040518,120]
[422405688,1778935922000,-275.66252384,0.00040518,120]
[422405687,1778935922000,-508.09011235,0.00040518,120]
[422405664,1778935922000,-214.49181945,0.00040518,120]
[422405673,1778935922000,-500.0,0.00040518,120]
[422405665,1778935922000,-500.0,0.00040518,120]
[422405634,1778935922000,-500.0,0.00040518,120]
[422405661,1778935922000,-500.0,0.00040518,120]
[422405691,1778935922000,-500.0,0.00040518,120]
[422405635,1778935922000,-500.0,0.00040518,120]
[422405636,1778935922000,-500.0,0.00040518,120]
[422405642,1778935922000,-500.0,0.00040518,120]
[422405638,1778935922000,-500.0,0.00040518,120]
[422405640,1778935922000,-500.0,0.00040518,120]
[422405641,1778935922000,-500.0,0.00040518,120]
[422405643,1778935922000,-500.0,0.00040518,120]
[422405644,1778935922000,-500.0,0.00040518,120]
[422405639,1778935922000,-500.0,0.00040518,120]
[422405646,1778935922000,-500.0,0.00040518,120]
[422405645,1778935922000,-500.0,0.00040518,120]
[422405663,1778935922000,-576.67512326,0.00040518,120]
[422405648,1778935922000,-500.0,0.00040518,120]
[422405650,1778935922000,-505.38041056,0.00040518,120]
[422405649,1778935922000,-500.0,0.00040518,120]
[422405655,1778935922000,-500.0,0.00040518,120]
[422405659,1778935922000,-500.0,0.00040518,120]
[422405651,1778935922000,-500.0,0.00040518,120]
[422405652,1778935922000,-500.0,0.00040518,120]
[422405660,1778935922000,-500.0,0.00040518,120]
[422405656,1778935922000,-500.0,0.00040518,120]
[422405653,1778935922000,-500.0,0.00040518,120]
[422405657,1778935922000,-500.0,0.00040518,120]
[422405658,1778935922000,-500.0,0.00040518,120]
[422405654,1778935922000,-500.0,0.00040518,120]
[422405647,1778935922000,-500.0,0.00040518,120]
[422405692,1778935922000,-500.0,0.00040518,120]
[422405637,1778935922000,-500.0,0.00040518,120]
[422405694,1778935922000,-500.0,0.00040518,120]
[422405724,1778935922000,-500.0,0.00040518,120]
[422405721,1778935922000,-500.0,0.00040518,120]
[422405723,1778935922000,-500.0,0.00040518,120]
[422405729,1778935922000,-500.0,0.00040518,120]
[422405730,1778935922000,-500.0,0.00040518,120]
[422405726,1778935922000,-500.0,0.00040518,120]
[422405728,1778935922000,-500.0,0.00040518,120]
[422405731,1778935922000,-500.0,0.00040518,120]
[422405727,1778935922000,-181.25036184,0.00040518,120]
[422405733,1778935922000,-500.0,0.00040518,120]
[422405735,1778935922000,-468.9754679,0.00040518,120]
[422405739,1778935922000,-500.0,0.00040518,120]
[422405725,1778935922000,-237.05685892,0.00040518,120]
[422405741,1778935922000,-500.0,0.00040518,120]
[422405736,1778935922000,-500.0,0.00040518,120]
[422405738,1778935922000,-500.0,0.00040518,120]
[422405740,1778935922000,-500.0,0.00040518,120]
[422405743,1778935922000,-500.0,0.00040518,120]
[422405744,1778935922000,-500.0,0.00040518,120]
[422405734,1778935922000,-500.0,0.00040518,120]
[422405746,1778935922000,-500.0,0.00040518,120]
[422405747,1778935922000,-500.0,0.00040518,120]
[422405745,1778935922000,-353.10176692,0.00040518,120]
[422405748,1778935922000,-579.47802362,0.00040518,120]
[422405749,1778935922000,-263.26383409,0.00040518,120]
[422405690,1778935922000,-500.0,0.00040518,120]
[422405742,1778935922000,-500.0,0.00040518,120]
[422405732,1778935922000,-500.0,0.00040518,120]
[422405737,1778935922000,-500.0,0.00040518,120]
[422405718,1778935922000,-500.0,0.00040518,120]
[422405693,1778935922000,-500.0,0.00040518,120]
[422405722,1778935922000,-500.0,0.00040518,120]
[422405695,1778935922000,-500.0,0.00040518,120]
[422405696,1778935922000,-500.0,0.00040518,120]
[422405698,1778935922000,-325.57009484,0.00040518,120]
[422405704,1778935922000,-500.0,0.00040518,120]
[422405707,1778935922000,-500.0,0.00040518,120]
[422405697,1778935922000,-500.0,0.00040518,120]
[422405699,1778935922000,-190.3225442,0.00040518,120]
[422405705,1778935922000,-500.0,0.00040518,120]
[422405708,1778935922000,-500.0,0.00040518,120]
[422405703,1778935922000,-500.0,0.00040518,120]
[422405701,1778935922000,-159.0727549,0.00040518,120]
[422405706,1778935922000,-500.0,0.00040518,120]
[422405717,1778935922000,-529.72419447,0.00040518,120]
[422405700,1778935922000,-281.61487601,0.00040518,120]
[422405709,1778935922000,-500.0,0.00040518,120]
[422405710,1778935922000,-500.0,0.00040518,120]
[422405711,1778935922000,-508.7355476,0.00040518,120]
[422405712,1778935922000,-500.0,0.00040518,120]
[422405714,1778935922000,-500.0,0.00040518,120]
[422405715,1778935922000,-220.32095979,0.00040518,120]
[422405719,1778935922000,-500.0,0.00040518,120]
[422405716,1778935922000,-500.0,0.00040518,120]
[422405713,1778935922000,-500.0,0.00040518,120]
[422405702,1778935922000,-186.08030628,0.00040518,120]
[422405720,1778935922000,-500.0,0.00040518,120]
[422405793,1778935923000,-500.0,0.00040518,120]
[422405786,1778935923000,-520.34,0.00040518,120]
[422405781,1778935923000,-520.34,0.00040518,120]
[422405789,1778935923000,-347.958276,0.00040518,120]
[422405787,1778935923000,-520.34,0.00040518,120]
[422405790,1778935923000,-520.3429023,0.00040518,120]
[422405783,1778935923000,-520.34,0.00040518,120]
[422405784,1778935923000,-594.84344562,0.00040518,120]
[422405792,1778935923000,-224.78179544,0.00040518,120]
[422405791,1778935923000,-518.22039596,0.00040518,120]
[422405788,1778935923000,-520.34,0.00040518,120]
[422405782,1778935923000,-500.0,0.00040518,120]
[422405795,1778935923000,-537.80083678,0.00040518,120]
[422405807,1778935923000,-500.0,0.00040518,120]
[422405803,1778935923000,-535.4,0.00040518,120]
[422405794,1778935923000,-447.38015977,0.00040518,120]
[422405798,1778935923000,-500.0,0.00040518,120]
[422405806,1778935923000,-535.4,0.00040518,120]
[422405805,1778935923000,-535.4,0.00040518,120]
[422405796,1778935923000,-516.44500332,0.00040518,120]
[422405799,1778935923000,-500.0,0.00040518,120]
[422405804,1778935923000,-535.4,0.00040518,120]
[422405801,1778935923000,-538.22562602,0.00040518,120]
[422405800,1778935923000,-520.58390299,0.00040518,120]
[422405802,1778935923000,-258.26323126,0.00040518,120]
[422405813,1778935923000,-535.4,0.00040518,120]
[422405785,1778935923000,-520.34,0.00040518,120]
[422405797,1778935923000,-500.0,0.00040518,120]
[422405779,1778935923000,-520.34,0.00040518,120]
[422405751,1778935923000,-175.88494367,0.00040518,120]
[422405776,1778935923000,-520.34,0.00040518,120]
[422405756,1778935923000,-182.51000619,0.00040518,120]
[422405750,1778935923000,-500.0,0.00040518,120]
[422405816,1778935923000,-535.4,0.00040518,120]
[422405755,1778935923000,-520.34,0.00040518,120]
[422405752,1778935923000,-274.47646629,0.00040518,120]
[422405754,1778935923000,-520.34,0.00040518,120]
[422405753,1778935923000,-538.64471673,0.00040518,120]
[422405759,1778935923000,-520.34,0.00040518,120]
[422405758,1778935923000,-520.34,0.00040518,120]
[422405757,1778935923000,-520.34,0.00040518,120]
[422405768,1778935923000,-520.34,0.00040518,120]
[422405767,1778935923000,-500.0,0.00040518,120]
[422405760,1778935923000,-520.34,0.00040518,120]
[422405773,1778935923000,-500.0,0.00040518,120]
[422405761,1778935923000,-520.34,0.00040518,120]
[422405763,1778935923000,-520.34,0.00040518,120]
[422405764,1778935923000,-520.34,0.00040518,120]
[422405762,1778935923000,-520.34,0.00040518,120]
[422405766,1778935923000,-520.34,0.00040518,120]
[422405770,1778935923000,-520.34,0.00040518,120]
[422405774,1778935923000,-520.34,0.00040518,120]
[422405777,1778935923000,-500.0,0.00040518,120]
[422405771,1778935923000,-500.0,0.00040518,120]
[422405772,1778935923000,-520.34,0.00040518,120]
[422405775,1778935923000,-500.0,0.00040518,120]
[422405778,1778935923000,-337.67799886,0.00040518,120]
[422405780,1778935923000,-500.0,0.00040518,120]
[422405769,1778935923000,-500.0,0.00040518,120]
[422405765,1778935923000,-500.0,0.00040518,120]
[422405808,1778935923000,-518.84362762,0.00040518,120]
[422405820,1778935923000,-535.4,0.00040518,120]
[422405815,1778935923000,-182.70302042,0.00040518,120]
[422405844,1778935923000,-500.0,0.00040518,120]
[422405846,1778935923000,-523.61834298,0.00040518,120]
[422405855,1778935923000,-276.12176642,0.00040518,120]
[422405849,1778935923000,-189.95724225,0.00040518,120]
[422405851,1778935923000,-500.0,0.00040518,120]
[422405854,1778935923000,-287.21567743,0.00040518,120]
[422405847,1778935923000,-500.0,0.00040518,120]
[422405850,1778935923000,-500.0,0.00040518,120]
[422405852,1778935923000,-507.1270385,0.00040518,120]
[422405848,1778935923000,-500.0,0.00040518,120]
[422405853,1778935923000,-200.06862376,0.00040518,120]
[422405857,1778935923000,-234.92590869,0.00040518,120]
[422405858,1778935923000,-196.11737399,0.00040518,120]
[422405845,1778935923000,-518.27140812,0.00040518,120]
[422405868,1778935923000,-500.0,0.00040518,120]
[422405869,1778935923000,-529.01288229,0.00040518,120]
[422405861,1778935923000,-441.92292731,0.00040518,120]
[422405860,1778935923000,-500.0,0.00040518,120]
[422405818,1778935923000,-535.4,0.00040518,120]
[422405867,1778935923000,-202.15348243,0.00040518,120]
[422405864,1778935923000,-524.77471878,0.00040518,120]
[422405865,1778935923000,-237.47911547,0.00040518,120]
[422405863,1778935923000,-415.01821672,0.00040518,120]
[422405866,1778935923000,-227.01031372,0.00040518,120]
[422405870,1778935923000,-284.43908853,0.00040518,120]
[422405872,1778935923000,-444.7344842,0.00040518,120]
[422405871,1778935923000,-530.42326169,0.00040518,120]
[422405873,1778935923000,-180.07634073,0.00040518,120]
[422405859,1778935923000,-500.0,0.00040518,120]
[422405856,1778935923000,-208.64086344,0.00040518,120]
[422405862,1778935923000,-500.0,0.00040518,120]
[422405839,1778935923000,-212.05846468,0.00040518,120]
[422405837,1778935923000,-500.0,0.00040518,120]
[422405811,1778935923000,-535.4,0.00040518,120]
[422405809,1778935923000,-535.4,0.00040518,120]
[422405814,1778935923000,-535.4,0.00040518,120]
[422405812,1778935923000,-535.4,0.00040518,120]
[422405810,1778935923000,-535.4,0.00040518,120]
[422405822,1778935923000,-535.4,0.00040518,120]
[422405830,1778935923000,-535.55187824,0.00040518,120]
[422405823,1778935923000,-271.97881323,0.00040518,120]
[422405821,1778935923000,-535.4,0.00040518,120]
[422405819,1778935923000,-535.4,0.00040518,120]
[422405829,1778935923000,-535.4,0.00040518,120]
[422405826,1778935923000,-535.4,0.00040518,120]
[422405825,1778935923000,-535.4,0.00040518,120]
[422405817,1778935923000,-535.4,0.00040518,120]
[422405828,1778935923000,-535.4,0.00040518,120]
[422405834,1778935923000,-500.0,0.00040518,120]
[422405827,1778935923000,-535.4,0.00040518,120]
[422405841,1778935923000,-500.0,0.00040518,120]
[422405842,1778935923000,-521.44118224,0.00040518,120]
[422405832,1778935923000,-500.0,0.00040518,120]
[422405833,1778935923000,-500.0,0.00040518,120]
[422405840,1778935923000,-532.94247137,0.00040518,120]
[422405835,1778935923000,-500.0,0.00040518,120]
[422405838,1778935923000,-500.0,0.00040518,120]
[422405836,1778935923000,-500.0,0.00040518,120]
[422405831,1778935923000,-512.30665144,0.00040518,120]
[422405824,1778935923000,-535.4,0.00040518,120]
[422405843,1778935923000,-525.02516364,0.00040518,120]
[422405897,1778935924000,-500.0,0.00040518,120]
[422405900,1778935924000,-500.0,0.00040518,120]
[422405896,1778935924000,-500.0,0.00040518,120]
[422405899,1778935924000,-500.0,0.00040518,120]
[422405898,1778935924000,-201.43849365,0.00040518,120]
[422405901,1778935924000,-500.0,0.00040518,120]
[422405902,1778935924000,-543.11207441,0.00040518,120]
[422405903,1778935924000,-196.88691921,0.00040518,120]
[422405906,1778935924000,-500.0,0.00040518,120]
[422405914,1778935924000,-530.70704567,0.00040518,120]
[422405912,1778935924000,-401.7098,0.00040518,120]
[422405908,1778935924000,-198.65763719,0.00040518,120]
[422405910,1778935924000,-219.0379016,0.00040518,120]
[422405911,1778935924000,-500.0,0.00040518,120]
[422405916,1778935924000,-379.45879513,0.00040518,120]
[422405913,1778935924000,-383.9861,0.00040518,120]
[422405907,1778935924000,-172.53826054,0.00040518,120]
[422405893,1778935924000,-193.3429412,0.00040518,120]
[422405909,1778935924000,-500.0,0.00040518,120]
[422405905,1778935924000,-500.0,0.00040518,120]
[422405879,1778935924000,-500.0,0.00040518,16]
[422405894,1778935924000,-500.0,0.00040518,120]
[422405874,1778935924000,-247.53255733,0.00040518,120]
[422405876,1778935924000,-198.76315082,0.00040518,120]
[422405877,1778935924000,-193.29215512,0.00040518,120]
[422405880,1778935924000,-500.0,0.00040518,16]
[422405881,1778935924000,-500.0,0.00040518,16]
[422405875,1778935924000,-495.9470012,0.00040518,120]
[422405878,1778935924000,-201.37860012,0.00040518,120]
[422405882,1778935924000,-270.09135824,0.00040518,120]
[422405904,1778935924000,-180.57489636,0.00040518,120]
[422405885,1778935924000,-500.0,0.00040518,16]
[422405884,1778935924000,-500.0,0.00040518,120]
[422405883,1778935924000,-500.0,0.00040518,16]
[422405915,1778935924000,-500.0,0.00040518,120]
[422405889,1778935924000,-500.0,0.00040518,16]
[422405890,1778935924000,-530.7570548,0.00040518,16]
[422405887,1778935924000,-500.0,0.00040518,16]
[422405892,1778935924000,-500.0,0.00040518,120]
[422405891,1778935924000,-500.0,0.00040518,120]
[422405886,1778935924000,-500.0,0.00040518,120]
[422405918,1778935924000,-500.0,0.00040518,120]
[422405888,1778935924000,-628.71008451,0.00040518,120]
[422405920,1778935924000,-500.0,0.00040518,120]
[422405939,1778935924000,-500.0,0.00040518,120]
[422405943,1778935924000,-500.0,0.00040518,120]
[422405945,1778935924000,-500.0,0.00040518,120]
[422405946,1778935924000,-500.0,0.00040518,120]
[422405947,1778935924000,-169.33591598,0.00040518,120]
[422405949,1778935924000,-500.0,0.00040518,120]
[422405950,1778935924000,-500.0,0.00040518,120]
[422405955,1778935924000,-500.0,0.00040518,120]
[422405954,1778935924000,-338.0127102,0.00040518,120]
[422405948,1778935924000,-500.0,0.00040518,120]
[422405953,1778935924000,-500.0,0.00040518,120]
[422405952,1778935924000,-500.0,0.00040518,120]
[422405956,1778935924000,-588.89755422,0.00040518,120]
[422405951,1778935924000,-500.0,0.00040518,120]
[422405957,1778935924000,-175.7735091,0.00040518,120]
[422405960,1778935924000,-268.88862712,0.00040518,120]
[422405959,1778935924000,-193.67983276,0.00040518,120]
[422405958,1778935924000,-277.77120332,0.00040518,120]
[422405917,1778935924000,-500.0,0.00040518,120]
[422405940,1778935924000,-240.15384533,0.00040518,120]
[422405938,1778935924000,-334.47766903,0.00040518,120]
[422405895,1778935924000,-500.0,0.00040518,120]
[422405936,1778935924000,-500.0,0.00040518,120]
[422405942,1778935924000,-500.0,0.00040518,120]
[422405919,1778935924000,-228.07083053,0.00040518,120]
[422405932,1778935924000,-500.0,0.00040518,120]
[422405930,1778935924000,-254.19145886,0.00040518,120]
[422405921,1778935924000,-533.13747076,0.00040518,120]
[422405928,1778935924000,-500.0,0.00040518,120]
[422405925,1778935924000,-500.0,0.00040518,120]
[422405922,1778935924000,-321.19997866,0.00040518,120]
[422405927,1778935924000,-500.0,0.00040518,120]
[422405923,1778935924000,-190.52831146,0.00040518,120]
[422405924,1778935924000,-498.9151797,0.00040518,120]
[422405926,1778935924000,-500.0,0.00040518,120]
[422405941,1778935924000,-500.0,0.00040518,120]
[422405944,1778935924000,-205.16196136,0.00040518,120]
[422405931,1778935924000,-500.0,0.00040518,120]
[422405937,1778935924000,-164.8944647,0.00040518,120]
[422405935,1778935924000,-500.0,0.00040518,120]
[422405934,1778935924000,-500.0,0.00040518,120]
[422405929,1778935924000,-305.97913747,0.00040518,120]
[422405933,1778935924000,-353.37592818,0.00040518,120]
[422405996,1778935925000,-215.40126846,0.00040518,120]
[422405988,1778935925000,-381.47515027,0.00040518,120]
[422405985,1778935925000,-519.51272041,0.00040518,120]
[422405986,1778935925000,-196.46457464,0.00040518,120]
[422405990,1778935925000,-385.76283432,0.00040518,120]
[422405991,1778935925000,-240.3233555,0.00040518,120]
[422405992,1778935925000,-293.44642658,0.00040518,120]
[422405993,1778935925000,-500.0,0.00040518,120]
[422405995,1778935925000,-500.0,0.00040518,120]
[422405994,1778935925000,-500.0,0.00040518,120]
[422406007,1778935925000,-370.28621755,0.00040518,120]
[422405999,1778935925000,-212.01056722,0.00040518,120]
[422405998,1778935925000,-263.32020078,0.00040518,120]
[422406003,1778935925000,-520.3978034,0.00040518,120]
[422406002,1778935925000,-376.02859822,0.00040518,120]
[422406000,1778935925000,-242.6605361,0.00040518,120]
[422406001,1778935925000,-319.56224962,0.00040518,120]
[422406015,1778935925000,-220.97396154,0.00040518,120]
[422406005,1778935925000,-358.54509908,0.00040518,120]
[422406004,1778935925000,-204.83392023,0.00040518,120]
[422405987,1778935925000,-520.30974832,0.00040518,120]
[422405997,1778935925000,-303.0322549,0.00040518,120]
[422405984,1778935925000,-532.99873319,0.00040518,120]
[422405974,1778935925000,-493.600583,0.00040518,120]
[422405982,1778935925000,-318.71308443,0.00040518,120]
[422405961,1778935925000,-342.64896512,0.00040518,120]
[422405963,1778935925000,-500.0,0.00040518,120]
[422405962,1778935925000,-500.0,0.00040518,120]
[422405964,1778935925000,-500.0,0.00040518,120]
[422405966,1778935925000,-500.0,0.00040518,120]
[422405970,1778935925000,-500.0,0.00040518,120]
[422405969,1778935925000,-500.0,0.00040518,120]
[422405965,1778935925000,-500.0,0.00040518,120]
[422405971,1778935925000,-500.0,0.00040518,120]
[422405967,1778935925000,-500.0,0.00040518,120]
[422405968,1778935925000,-500.0,0.00040518,120]
[422405973,1778935925000,-500.0,0.00040518,120]
[422405972,1778935925000,-500.0,0.00040518,120]
[422406009,1778935925000,-510.22715827,0.00040518,120]
[422405980,1778935925000,-401.97911435,0.00040518,120]
[422405975,1778935925000,-214.31782163,0.00040518,120]
[422405976,1778935925000,-218.68409092,0.00040518,120]
[422405977,1778935925000,-188.49488336,0.00040518,120]
[422405979,1778935925000,-253.28585982,0.00040518,120]
[422405978,1778935925000,-231.97440558,0.00040518,120]
[422405981,1778935925000,-292.42237925,0.00040518,120]
[422405983,1778935925000,-500.0,0.00040518,120]
[422406013,1778935925000,-493.98889321,0.00040518,120]
[422405989,1778935925000,-175.66424853,0.00040518,120]
[422406012,1778935925000,-231.87041817,0.00040518,120]
[422406037,1778935925000,-500.0,0.00040518,120]
[422406039,1778935925000,-500.0,0.00040518,120]
[422406040,1778935925000,-507.90202691,0.00040518,120]
[422406041,1778935925000,-207.85634471,0.00040518,120]
[422406047,1778935925000,-511.60160231,0.00040518,120]
[422406043,1778935925000,-500.0,0.00040518,120]
[422406044,1778935925000,-500.0,0.00040518,120]
[422406045,1778935925000,-473.35379934,0.00040518,120]
[422406046,1778935925000,-200.13318482,0.00040518,120]
[422406042,1778935925000,-531.73358786,0.00040518,120]